bitfinex-derivatives/quotes_SOLF0:USTF0_20250309
["timestamp","ask_amount","ask_price","bid_price","bid_amount"]
[1741559535299,0.05343496,126.65,126.62,0.05218203]
[1741559535797,0.05343496,126.65,126.62,8.203e-05]
[1741559536401,7.8976,126.63,126.62,8.203e-05]
[1741559538903,11.8376,126.63,126.62,8.203e-05]
[1741559539208,3.94,126.63,126.54,2.0078]
[1741559539409,271.03326065,126.64,126.52,7.904]
[1741559539706,52.53406065,126.61,126.5,56.64086065]
[1741559540001,182.3916,126.63,126.51,36.34]
[1741559540203,52.53406065,126.61,126.5,4.1068]
[1741559540508,0.06058036,126.58,126.56,7.64e-05]
[1741559540908,36.48,126.62,126.56,7.64e-05]
[1741559541212,7.8992,126.61,126.56,7.64e-05]
[1741559541398,182.3916,126.63,126.56,7.64e-05]
[1741559541599,0.05936746,126.6,126.56,7.64e-05]
[1741559541905,0.05936746,126.6,126.56,40.8306764]
[1741559542402,0.05936746,126.6,126.57,2.0235]
[1741559542596,260.48,126.68,126.57,2.0235]
[1741559542597,260.48,126.68,126.57,54.55756065]
[1741559542797,7.8961,126.66,126.57,54.55756065]
[1741559542997,260.48,126.68,126.57,54.55756065]
[1741559543409,7.8956,126.67,126.6,52.53406065]
[1741559543606,7.8956,126.67,126.61,36.86]
[1741559543806,0.05583479,126.65,126.62,0.06048609]
[1741559544001,7.8945,126.68,126.62,1.9398]
[1741559544306,219.3316,126.71,126.62,1.9398]
[1741559544502,52.53406065,126.67,126.62,1.9398]
[1741559544707,37.06,126.66,126.57,39.0435]
[1741559545108,0.05004033,126.63,126.6,0.05256856]
[1741559546014,7.8954,126.67,126.61,37.34]
[1741559546307,37.32,126.69,126.61,37.34]
[1741559546612,7.8977,126.63,126.61,37.34]
[1741559546812,7.8977,126.63,126.58,39.3398]
[1741559547006,7.8977,126.63,126.58,47.2403]
[1741559547208,0.05609702,126.62,126.59,0.05673204]
[1741559547411,37.32,126.69,126.61,7.8989]
[1741559547609,37.32,126.69,126.58,39.3398]
[1741559547911,37.34,126.7,126.61,7.8985]
[1741559548105,37.34,126.7,126.59,52.53406065]
[1741559548305,7.898,126.63,126.58,39.3398]
[1741559548503,37.34,126.7,126.58,39.3398]
[1741559548504,0.05024148,126.66,126.63,0.05826825]
[1741559548705,52.53406065,126.69,126.58,39.3398]
[1741559548906,0.05115216,126.66,126.63,0.05073827]
[1741559550114,7.897,126.64,126.63,0.05073827]
[1741559550314,7.897,126.64,126.63,3.827e-05]
[1741559551017,11.837,126.64,126.63,3.827e-05]
[1741559551515,7.897,126.64,126.63,3.827e-05]
[1741559552018,11.837,126.64,126.63,3.827e-05]
[1741559552419,3.94,126.64,126.55,2.1082]
[1741559552618,7.902,126.56,126.52,41.3827]
[1741559552820,7.902,126.56,126.52,43.4197]
[1741559553020,7.9011,126.58,126.52,43.4197]
[1741559553415,37.44,126.64,126.54,52.53406065]
[1741559553620,0.05500759,126.56,126.55,7.9026]
[1741559553819,7.8994,126.61,126.54,52.53406065]
[1741559554318,7.8993,126.61,126.56,7.9016]
[1741559554519,37.44,126.64,126.56,37.44]
[1741559554921,0.05388454,126.61,126.59,0.05380571]
[1741559557122,0.05388454,126.61,126.59,7.95350571]
[1741559557327,7.8981,126.63,126.59,7.95350571]
[1741559557615,32.34742936,126.69,126.6,39.3353]
[1741559557821,7.8967,126.65,126.61,7.8988]
[1741559558017,182.3916,126.7,126.6,39.3353]
[1741559558325,182.3916,126.7,126.64,0.05915915]
[1741559558326,0.05844147,126.66,126.64,0.05915915]
[1741559558520,0.05844147,126.66,126.64,5.915e-05]
[1741559558714,7.8964,126.65,126.64,5.915e-05]
[1741559560323,7.95424147,126.66,126.64,5.915e-05]
[1741559560520,0.05844147,126.66,126.64,5.915e-05]
[1741559561625,260.62,126.73,126.64,37.34005915]
[1741559561820,260.62,126.73,126.66,7.8953]
[1741559562215,260.62,126.73,126.66,9.82]
[1741559562517,7.8942,126.69,126.66,1.9247]
[1741559562822,260.62,126.73,126.68,0.05121842]
[1741559562823,0.05679541,126.71,126.68,0.05121842]
[1741559563324,7.8932,126.7,126.68,0.05121842]
[1741559563525,0.05679541,126.71,126.68,0.05121842]
[1741559565320,7.8934,126.7,126.68,0.05121842]
[1741559565819,7.94959541,126.71,126.68,0.05121842]
[1741559566220,7.94959541,126.71,126.68,7.94571842]
[1741559566426,7.94959541,126.71,126.68,37.15121842]
[1741559566822,0.05679541,126.71,126.68,37.15121842]
[1741559567426,7.94949541,126.71,126.68,45.04531842]
[1741559568027,32.34742936,126.78,126.7,7.8929]
[1741559568225,69.44742936,126.78,126.68,37.1]
[1741559568530,69.44742936,126.78,126.68,44.994]
[1741559568531,7.8924,126.72,126.68,44.994]
[1741559568728,7.8924,126.72,126.68,37.1]
[1741559569028,32.34742936,126.76,126.68,44.9941]
[1741559569329,0.05462898,126.71,126.69,0.05027191]
[1741559569629,7.8924,126.72,126.69,0.05027191]
[1741559570022,7.8932,126.7,126.69,0.05027191]
[1741559570225,0.05560651,126.72,126.69,0.05027191]
[1741559570626,7.94790651,126.72,126.69,0.05027191]
[1741559570826,0.05560651,126.72,126.69,0.05027191]
[1741559571125,7.8929,126.71,126.69,0.05027191]
[1741559571528,0.05560651,126.72,126.69,0.05027191]
[1741559571727,0.05560651,126.72,126.69,37.07027191]
[1741559571928,0.05560651,126.72,126.69,44.96377191]
[1741559572227,0.05560651,126.72,126.69,0.05027191]
[1741559572427,7.8932,126.7,126.69,0.05027191]
[1741559574525,0.05560651,126.72,126.69,0.05027191]
[1741559574730,0.05560651,126.72,126.69,7.94377191]
[1741559574931,0.05560651,126.72,126.69,0.05027191]
[1741559575131,7.94790651,126.72,126.69,0.05027191]
[1741559576633,7.94790651,126.72,126.69,7.94397191]
[1741559576829,0.05560651,126.72,126.69,0.05027191]
[1741559577133,0.05560651,126.72,126.7,7.8929]
[1741559577330,0.05560651,126.72,126.7,9.8896]
[1741559577925,0.05560651,126.72,126.7,1.9967]
[1741559578234,7.94800651,126.72,126.7,1.9967]
[1741559578640,0.05560651,126.72,126.69,0.05027191]
[1741559578841,7.893,126.71,126.69,0.05027191]
[1741559579141,0.05560651,126.72,126.69,0.05027191]
[1741559579441,7.8932,126.7,126.69,0.05027191]
[1741559579641,0.05560651,126.72,126.69,0.05027191]
[1741559580136,16.42703134,126.8,126.69,0.05027191]
[1741559580137,15.94773134,126.8,126.7,32.34742936]
[1741559580541,7.8894,126.77,126.73,7.8913]
[1741559580846,182.3916,126.81,126.72,36.98]
[1741559581341,0.03083657,126.78,126.75,0.0497829]
[1741559582038,32.34742936,126.76,126.64,37.16]
[1741559582232,32.34742936,126.73,126.65,2.0126]
[1741559582431,69.52742936,126.73,126.65,2.0126]
[1741559583238,0.05452081,126.7,126.68,0.05438427]
[1741559583641,7.8939,126.69,126.68,0.05438427]
[1741559584453,0.05452081,126.7,126.68,0.05438427]
[1741559585053,7.8939,126.69,126.68,0.05438427]
[1741559586655,7.8939,126.69,126.68,8.427e-05]
[1741559586947,45.0139,126.69,126.68,8.427e-05]
[1741559587855,7.8939,126.69,126.68,8.427e-05]
[1741559588550,7.94812081,126.7,126.68,8.427e-05]
[1741559589053,0.05452081,126.7,126.68,8.427e-05]
[1741559590850,7.8939,126.69,126.68,8.427e-05]
[1741559593352,32.40195017,126.7,126.62,2.1261]
[1741559593553,32.34742936,126.7,126.62,2.1261]
[1741559593755,32.34742936,126.67,126.58,37.06]
[1741559593956,37.06,126.66,126.58,49.0644]
[1741559594451,7.8972,126.64,126.6,7.8994]
[1741559594648,0.0512568,126.63,126.61,0.05354658]
[1741559595049,7.8982,126.62,126.61,0.05354658]
[1741559595245,0.0512568,126.63,126.61,0.05354658]
[1741559595747,7.8982,126.62,126.61,0.05354658]
[1741559597655,0.0512568,126.63,126.61,0.05354658]
[1741559599952,7.9491568,126.63,126.61,0.05354658]
[1741559600153,0.0512568,126.63,126.61,0.05354658]
[1741559600556,7.9492568,126.63,126.61,0.05354658]
[1741559601361,0.0512568,126.63,126.61,0.05354658]
[1741559602360,36.96,126.69,126.61,0.05354658]
[1741559602560,7.8954,126.67,126.6,20.20170378]
[1741559602756,7.8954,126.67,126.63,7.8974]
[1741559603260,36.96,126.69,126.6,20.20170378]
[1741559603463,0.05281749,126.66,126.64,0.05329002]
[1741559603656,7.8968,126.65,126.64,0.05329002]
[1741559604061,0.05281749,126.66,126.64,0.05329002]
[1741559604252,7.8964,126.65,126.64,0.05329002]
[1741559605356,7.94881749,126.66,126.64,0.05329002]
[1741559606062,0.05281749,126.66,126.64,0.05329002]
[1741559608566,7.8964,126.65,126.64,0.05329002]
[1741559609061,7.8964,126.65,126.64,9.002e-05]
[1741559610166,0.05281749,126.66,126.64,9.002e-05]
[1741559611265,7.8964,126.65,126.64,9.002e-05]
[1741559612464,0.05281749,126.66,126.58,4.1041]
[1741559612465,69.4386183,126.66,126.58,4.1041]
[1741559612773,69.38580081,126.66,126.58,4.1041]
[1741559613074,32.32580081,126.62,126.5,86.78991856]
[1741559613265,32.32580081,126.62,126.52,2.1302]
[1741559613266,37.26,126.61,126.52,2.1302]
[1741559613770,7.902,126.56,126.55,0.0518858]
[1741559614861,0.0569117,126.58,126.5,43.22728091]
[1741559614862,37.88,126.57,126.5,43.22728091]
[1741559615267,220.3116,126.6,126.51,37.92]
[1741559615468,220.3116,126.6,126.52,2.0584]
[1741559615667,32.32580081,126.59,126.5,43.22728091]
[1741559616069,7.9045,126.52,126.5,43.22728091]
[1741559616270,260.64,126.59,126.53,0.05180456]
[1741559616470,260.64,126.59,126.5,81.28728091]
[1741559616671,252.63740081,126.6,126.55,0.0510268]
[1741559616975,70.72580081,126.63,126.55,0.0510268]
[1741559617172,38.4,126.63,126.5,81.28728091]
[1741559617567,38.4,126.63,126.51,32.32580081]
[1741559617768,38.46,126.67,126.57,32.32580081]
[1741559618073,7.8968,126.65,126.6,7.899]
[1741559618271,38.46,126.67,126.58,42.4623]
[1741559618472,10.68057872,126.69,126.58,42.4623]
[1741559618675,7.8953,126.67,126.62,7.8978]
[1741559618971,0.05024768,126.66,126.63,0.05157656]
[1741559621276,260.64,126.71,126.63,0.05157656]
[1741559621576,32.32580081,126.72,126.63,1.9266]
[1741559621777,32.32580081,126.72,126.64,1.9426]
[1741559622378,215.02950081,126.75,126.64,1.9426]
[1741559622578,0.02262265,126.69,126.67,0.05941231]
[1741559622977,7.8933,126.7,126.67,0.05941231]
[1741559623178,0.02262265,126.69,126.67,0.05941231]
[1741559623375,260.62,126.77,126.67,0.05941231]
[1741559623681,298.94,126.77,126.66,38.36]
[1741559623873,7.8916,126.73,126.68,7.8943]
[1741559624173,298.94,126.77,126.66,38.36]
[1741559624376,7.8925,126.72,126.67,7.8951]
[1741559624576,7.8925,126.72,126.7,0.05614996]
[1741559624780,298.94,126.77,126.7,0.05614996]
[1741559624977,7.8921,126.72,126.7,0.05614996]
[1741559625380,298.94,126.77,126.7,0.05614996]
[1741559625675,32.32580081,126.76,126.7,0.05614996]
[1741559626780,298.94,126.77,126.7,0.05614996]
[1741559627679,442.9316,126.83,126.71,38.34]
[1741559627879,475.25740081,126.83,126.72,36.47540081]
[1741559628181,442.9316,126.83,126.72,36.47540081]
[1741559628584,7.8879,126.79,126.76,0.06008599]
[1741559628779,475.25740081,126.83,126.76,0.06008599]
[1741559629080,32.32580081,126.81,126.76,0.06008599]
[1741559629381,32.32580081,126.79,126.72,2.0657]
[1741559629579,38.52,126.8,126.72,2.0657]
[1741559629881,38.52,126.8,126.72,40.5457]
[1741559630080,214.71740081,126.82,126.73,1.9742]
[1741559630281,32.32580081,126.8,126.73,1.9742]
[1741559630581,0.05535742,126.79,126.76,0.05841359]
[1741559630781,0.05535742,126.79,126.76,1.359e-05]
[1741559630975,70.74580081,126.78,126.76,1.359e-05]
[1741559631280,7.8938,126.7,126.67,40.5507]
[1741559631484,38.46,126.74,126.67,2.1107]
[1741559631682,38.66,126.74,126.67,2.1107]
[1741559632070,38.66,126.74,126.64,38.46]
[1741559632482,0.05640559,126.7,126.68,0.0555048]
[1741559632976,221.5032,126.77,126.68,38.7755048]
[1741559633177,221.5032,126.77,126.69,1.9747]
[1741559633383,7.8921,126.72,126.69,1.9747]
[1741559633577,221.5032,126.77,126.69,1.9747]
[1741559633783,221.1116,126.77,126.69,1.9747]
[1741559633979,221.1116,126.77,126.69,3.9131]
[1741559634179,7.8915,126.73,126.72,0.05551883]
[1741559634373,0.05966261,126.74,126.72,0.05551883]
[1741559634987,38.6,126.8,126.72,0.05551883]
[1741559635177,7.8898,126.76,126.72,38.56]
[1741559635378,0.3916,126.81,126.72,38.56]
[1741559635579,182.6733,126.82,126.72,38.56]
[1741559635775,7.8893,126.77,126.72,46.4516]
[1741559636180,7.8893,126.77,126.73,0.05578448]
[1741559636786,7.8893,126.77,126.73,7.94668448]
[1741559636982,7.8887,126.78,126.73,7.94668448]
[1741559637182,263.8139149,126.86,126.75,32.32580081]
[1741559637379,182.8402,126.86,126.77,7.8887]
[1741559637585,7.8875,126.8,126.76,42.7605]
[1741559638085,7.8873,126.8,126.77,0.05487153]
[1741559638283,182.8402,126.86,126.77,0.05487153]
[1741559638681,7.8868,126.81,126.76,42.7605]
[1741559638878,182.3916,126.86,126.78,32.32580081]
[1741559639079,262.529,126.89,126.81,7.8864]
[1741559639390,262.529,126.89,126.81,38.74]
[1741559639688,7.8837,126.86,126.84,0.05548731]
[1741559640184,262.529,126.89,126.84,0.05548731]
[1741559640389,2.109,126.89,126.84,0.05548731]
[1741559640782,38.96,126.92,126.84,0.05548731]
[1741559640984,2.0266,126.92,126.82,2.1159]
[1741559641285,41.0266,126.92,126.87,0.0584035]
[1741559641986,7.882,126.88,126.87,0.0584035]
[1741559642382,2.0266,126.92,126.87,0.0584035]
[1741559643586,7.882,126.88,126.87,0.0584035]
[1741559644392,2.0266,126.92,126.87,0.0584035]
[1741559646593,38.76,126.94,126.87,0.0584035]
[1741559647091,40.9899,126.96,126.87,0.0584035]
[1741559647291,2.2499,126.96,126.88,7.8819]
[1741559647499,7.8797,126.92,126.9,0.05054361]
[1741559647689,2.2499,126.96,126.9,0.05054361]
[1741559647893,1.9707,126.96,126.9,0.05054361]
[1741559648389,70.98580081,126.99,126.9,0.05054361]
[1741559648595,7.8789,126.93,126.9,1.9926]
[1741559648892,7.8789,126.93,126.9,2.04805147]
[1741559649085,73.05470081,126.99,126.9,2.04805147]
[1741559649286,73.05470081,126.99,126.9,1.9926]
[1741559649494,73.05470081,126.99,126.93,0.0503112]
[1741559650389,2.1289,126.99,126.93,0.0503112]
[1741559650990,15.7447,127.04,126.93,0.0503112]
[1741559651189,1.9902,127.03,126.92,32.32580081]
[1741559651387,34.31600081,127.03,126.97,0.05685231]
[1741559651590,32.32580081,127.01,126.97,0.05685231]
[1741559651790,34.31600081,127.03,126.97,0.05685231]
[1741559652197,7.8758,126.98,126.97,0.05685231]
[1741559652691,32.32580081,126.99,126.9,1.9926]
[1741559652896,1.9375,126.97,126.9,1.9926]
[1741559653287,7.8812,126.9,126.88,1.9468]
[1741559653490,38.38,126.96,126.88,1.9468]
[1741559653695,32.32580081,126.95,126.86,40.3475]
[1741559653897,7.8796,126.92,126.91,0.05127208]
[1741559655693,7.8796,126.92,126.91,7.208e-05]
[1741559656993,0.05106611,126.93,126.91,7.208e-05]
[1741559658597,38.68,126.99,126.91,4.04027208]
[1741559658796,7.8771,126.97,126.91,4.0402]
[1741559658996,7.8771,126.97,126.93,7.8789]
[1741559659202,2.0824,127.01,126.91,4.0402]
[1741559659406,2.0824,127.01,126.92,32.32580081]
[1741559659604,0.05941758,126.97,126.95,0.06059685]
[1741559662002,0.05941758,126.97,126.95,7.93779685]
[1741559662404,0.05941758,126.97,126.95,0.06059685]
[1741559664404,7.8771,126.96,126.95,0.06059685]
[1741559664605,0.05941758,126.97,126.95,0.06059685]
[1741559665003,7.93611758,126.97,126.95,0.06059685]
[1741559665200,0.05941758,126.97,126.95,0.06059685]
[1741559669912,0.2788,127.04,126.95,0.06059685]
[1741559670207,7.8751,127.0,126.96,7.8768]
[1741559670407,0.2788,127.04,126.94,70.92580081]
[1741559671206,0.2788,127.04,126.98,0.05828271]
[1741559671607,7.8749,127.0,126.98,0.05828271]
[1741559672108,7.8751,127.0,126.98,0.05828271]
[1741559672411,0.2788,127.04,126.98,0.05828271]
[1741559675012,7.875,127.0,126.98,0.05828271]
[1741559675418,0.2788,127.04,126.98,0.05828271]
[1741559676715,7.8749,127.0,126.98,0.05828271]
[1741559678313,0.2788,127.04,126.98,0.05828271]
[1741559678708,7.875,127.0,126.98,0.05828271]
[1741559683421,0.2788,127.04,126.98,0.05828271]
[1741559683621,7.8752,126.99,126.98,0.05828271]
[1741559684016,20.08812228,127.02,126.93,20.08812228]
[1741559684220,20.08812228,127.0,126.92,37.32]
[1741559685121,7.8778,126.95,126.92,37.32]
[1741559685316,0.05828271,126.97,126.92,7.8795]
[1741559685524,7.8771,126.96,126.92,0.0565729]
[1741559685723,0.05828271,126.97,126.93,27.96652228]
[1741559686524,7.93488271,126.97,126.93,27.96652228]
[1741559686926,0.05828271,126.97,126.93,20.08812228]
[1741559687127,0.05828271,126.97,126.92,0.0565729]
[1741559687526,7.8784,126.94,126.92,0.0565729]
[1741559687726,20.08812228,127.0,126.92,0.0565729]
[1741559687928,0.05013842,126.94,126.91,20.08812228]
[1741559688227,37.28,127.01,126.93,20.08812228]
[1741559688427,0.05621185,126.94,126.93,20.08812228]
[1741559688627,0.05828271,126.95,126.91,20.08812228]
[1741559688832,0.05828271,126.95,126.92,0.05833347]
[1741559689619,0.05828271,126.95,126.93,20.08812228]
[1741559689929,0.05828271,126.95,126.93,27.96672228]
[1741559691524,7.93628271,126.95,126.93,20.08812228]
[1741559692121,7.8783,126.94,126.93,20.08812228]
[1741559692328,0.05828271,126.95,126.92,0.05833347]
[1741559692729,7.8789,126.94,126.92,0.05833347]
[1741559694933,0.05828271,126.95,126.92,0.05833347]
[1741559694934,0.05828271,126.95,126.93,7.8788]
[1741559695125,0.05828271,126.95,126.92,0.05833347]
[1741559695326,7.93628271,126.95,126.92,7.93773347]
[1741559695621,0.05828271,126.95,126.92,0.05833347]
[1741559696033,0.05828271,126.95,126.93,7.8789]
[1741559696229,0.05828271,126.95,126.92,0.05833347]
[1741559696627,0.05828271,126.95,126.93,7.8789]
[1741559696828,0.05828271,126.95,126.93,27.96702228]
[1741559697129,0.05828271,126.95,126.94,7.8783]
[1741559697331,36.82,127.01,126.94,7.8783]
[1741559697531,36.82,127.01,126.95,36.38]
[1741559697934,7.8763,126.98,126.95,36.38]
[1741559698228,184.4166,127.03,126.96,7.8768]
[1741559698424,7.8752,126.99,126.98,0.05464447]
[1741559700532,7.875,127.0,126.98,0.05464447]
[1741559701131,1.96867292,126.99,126.98,0.05464447]
[1741559702238,1.96867733,126.99,126.98,0.05464447]
[1741559702636,7.8752,126.99,126.98,0.05464447]
[1741559702836,2.025,127.03,126.98,0.05464447]
[1741559703132,7.8749,127.0,126.98,0.05464447]
[1741559703839,1.96868736,126.99,126.98,0.05464447]
[1741559704238,1.96859612,126.99,126.98,0.05464447]
[1741559704643,20.08812228,127.06,126.98,7.93044447]
[1741559704942,20.08812228,127.06,127.01,0.05993703]
[1741559705142,7.8734,127.02,127.01,0.05993703]
[1741559705839,9.84201587,127.02,127.01,0.05993703]
[1741559706842,1.96861587,127.02,127.01,20.14805931]
[1741559708344,9.84201587,127.02,127.01,20.14805931]
[1741559708645,1.96861587,127.02,127.01,20.14805931]
[1741559709246,182.3916,127.08,127.01,20.14805931]
[1741559709447,37.7004,127.11,127.03,20.08812228]
[1741559709648,7.8711,127.06,127.04,35.74]
[1741559709851,37.7004,127.11,127.06,0.05157513]
[1741559710042,20.08812228,127.1,127.06,7.513e-05]
[1741559710243,7.8703,127.07,127.06,7.513e-05]
[1741559711844,0.0515,127.08,127.06,7.513e-05]
[1741559712349,7.9216,127.08,127.06,7.513e-05]
[1741559712654,0.0515,127.08,127.06,7.513e-05]
[1741559712844,0.0515,127.08,127.07,20.08812228]
[1741559713152,18.29048753,127.15,127.07,20.08812228]
[1741559713453,7.8664,127.14,127.09,27.95672228]
[1741559713645,18.29048753,127.15,127.09,20.08812228]
[1741559713948,7.866,127.14,127.09,27.95672228]
[1741559714148,42.7223149,127.17,127.11,20.1406033]
[1741559714454,42.7223149,127.17,127.13,20.08812228]
[1741559714951,50.5867149,127.17,127.14,0.05194934]
[1741559715251,42.7223149,127.17,127.15,20.08812228]
[1741559715752,50.5866149,127.17,127.15,20.08812228]
[1741559716050,42.7223149,127.17,127.14,0.05194934]
[1741559716749,0.4382,127.21,127.14,0.05194934]
[1741559716939,7.8652,127.16,127.14,0.05194934]
[1741559717344,0.4382,127.21,127.14,0.05194934]
[1741559717544,204.49932228,127.22,127.14,0.05194934]
[1741559717744,204.49932228,127.22,127.13,20.08812228]
[1741559717952,184.4112,127.22,127.17,0.05077487]
[1741559718245,7.8632,127.19,127.17,0.05077487]
[1741559718446,42.7223149,127.25,127.17,0.05077487]
[1741559718653,44.6532149,127.25,127.17,20.08812228]
[1741559718851,44.6532149,127.25,127.2,0.05234848]
[1741559719147,7.8616,127.21,127.2,0.05234848]
[1741559719954,55.62812228,127.23,127.15,35.52]
[1741559720249,20.08812228,127.21,127.12,35.56]
[1741559720654,7.8663,127.14,127.12,35.56]
[1741559720850,20.08812228,127.21,127.12,35.56]
[1741559721056,0.05234848,127.14,127.12,35.61567663]
[1741559721248,35.52,127.17,127.04,1.36848935]
[1741559721449,20.08812228,127.09,127.02,1.9926]
[1741559721655,20.08812228,127.07,127.0,43.22728091]
[1741559721954,20.08812228,127.05,127.0,43.22728091]
[1741559722155,7.874,127.01,127.0,43.22728091]
[1741559722351,0.323,127.06,127.0,43.22728091]
[1741559722554,0.05072002,127.02,127.0,43.22728091]
[1741559723052,0.05072002,127.02,127.0,43.28393629]
[1741559723448,7.8703,127.07,127.0,110.94167554]
[1741559723652,7.8703,127.07,127.02,32.13773925]
[1741559723848,295.12,127.1,127.02,32.13773925]
[1741559724049,7.8724,127.04,127.02,32.13773925]
[1741559724256,327.25773925,127.1,127.0,35.52]
[1741559724454,32.13773925,127.08,126.97,37.465]
[1741559724655,0.05938234,127.06,126.97,37.465]
[1741559724955,35.58,127.06,126.97,37.465]
[1741559725355,35.58,127.06,126.97,1.925]
[1741559725651,7.8743,127.01,127.0,0.05422971]
[1741559726454,7.8743,127.01,127.0,2.971e-05]
[1741559726647,0.05397172,127.03,127.0,2.971e-05]
[1741559726846,7.92687172,127.03,127.0,2.971e-05]
[1741559727158,0.05397172,127.03,127.0,2.971e-05]
[1741559728249,0.323,127.11,127.0,2.971e-05]
[1741559728446,35.4,127.09,127.0,2.0998]
[1741559729554,0.05895406,127.06,127.03,0.05017622]
[1741559729854,35.3,127.15,127.05,32.13773925]
[1741559730047,7.8674,127.12,127.07,32.13773925]
[1741559730552,2.0535,127.17,127.09,32.13773925]
[1741559730758,2.0535,127.17,127.1,7.8683]
[1741559730759,7.8649,127.16,127.1,7.8683]
[1741559730955,0.05054497,127.14,127.12,0.05867811]
[1741559731751,0.05054497,127.14,127.12,35.31867811]
[1741559731955,0.3278,127.21,127.12,35.31867811]
[1741559732260,0.3278,127.21,127.12,35.26]
[1741559732561,444.1451,127.23,127.13,32.13773925]
[1741559732758,479.7251,127.23,127.13,34.15773925]
[1741559732954,511.86283925,127.23,127.13,2.02]
[1741559733155,32.13773925,127.21,127.17,4.464e-05]
[1741559733352,7.8635,127.18,127.17,4.464e-05]
[1741559733553,35.66,127.18,127.08,35.64]
[1741559733754,7.869,127.09,127.05,35.66]
[1741559733955,35.68,127.09,127.02,67.79773925]
[1741559734148,35.68,127.09,126.99,32.13773925]
[1741559734352,7.8715,127.05,126.99,131.08749737]
[1741559734559,35.68,127.09,126.99,131.08749737]
[1741559734859,35.68,127.09,127.02,52.20021646]
[1741559736157,35.68,127.09,127.04,0.0501483]
[1741559736860,7.8708,127.07,127.04,0.0501483]
[1741559737057,35.52,127.12,127.04,0.0501483]
[1741559737254,35.52,127.12,127.03,35.52]
[1741559737461,35.52,127.12,127.07,0.06018004]
[1741559738160,7.8677,127.12,127.07,0.06018004]
[1741559738758,7.8674,127.12,127.07,43.49028004]
[1741559739160,261.6061,127.15,127.07,35.62018004]
[1741559739559,261.6061,127.15,127.1,0.05424675]
[1741559741073,7.8669,127.13,127.1,0.05424675]
[1741559741259,1.9461,127.15,127.1,0.05424675]
[1741559742254,7.8661,127.14,127.1,0.05424675]
[1741559742561,35.3,127.18,127.1,0.05424675]
[1741559742760,35.3,127.18,127.1,7.868]
[1741559742964,7.8658,127.15,127.13,0.05232829]
[1741559745158,7.8659,127.14,127.13,0.05232829]
[1741559746165,7.8683,127.11,127.07,6.2663]
[1741559746569,35.06,127.15,127.07,6.2663]
[1741559747369,0.05238381,127.12,127.07,2.0578]
[1741559747570,0.05238381,127.12,127.1,3.86e-06]
[1741559747962,7.8712,127.06,127.04,35.0]
[1741559748166,87.18021646,127.11,127.0,6.2527]
[1741559748367,87.18021646,127.11,127.0,41.2527]
[1741559748772,0.05648754,127.07,127.04,0.05073042]
[1741559750971,7.92708754,127.07,127.04,0.05073042]
[1741559751772,0.05648754,127.07,127.04,34.97073042]
[1741559751969,0.05648754,127.07,127.04,87.17094688]
[1741559752171,7.868,127.11,127.04,87.17094688]
[1741559752370,7.868,127.11,127.04,87.12021646]
[1741559752572,261.6441,127.13,127.04,87.12021646]
[1741559752573,182.712,127.18,127.07,52.20021646]
[1741559752770,182.712,127.18,127.09,7.869]
[1741559752771,7.867,127.13,127.09,7.869]
[1741559753372,0.05504578,127.12,127.1,0.0571561]
[1741559753774,0.05504578,127.12,127.11,7.8678]
[1741559754370,7.8654,127.15,127.11,7.8678]
[1741559754577,182.3916,127.18,127.12,34.88]
[1741559754780,36.8812,127.2,127.12,42.747]
[1741559755274,36.8812,127.2,127.12,34.88]
[1741559755472,36.8812,127.2,127.15,0.06056252]
[1741559755778,7.8642,127.17,127.15,0.06056252]
[1741559755976,2.0012,127.2,127.15,0.06056252]
[1741559756377,7.8644,127.17,127.15,0.06056252]
[1741559758980,2.0012,127.2,127.15,0.06056252]
[1741559759377,32.06884357,127.19,127.15,6.252e-05]
[1741559759571,7.8647,127.16,127.15,6.252e-05]
[1741559759876,34.58,127.16,127.06,34.58]
[1741559760071,32.06884357,127.12,127.01,44.59593173]
[1741559760275,36.5133,127.11,127.01,43.22728091]
[1741559760475,36.5133,127.11,127.02,34.58]
[1741559760677,36.5133,127.11,127.02,74.52204357]
[1741559760877,0.05743102,127.08,127.05,0.05557346]
[1741559761483,34.58,127.14,127.06,34.58]
[1741559761677,34.58,127.14,127.06,38.5283]